[Event "Titled Tuesday Blitz July 6 2021"]
[White "Kotsur, Pavel"]
[Black "Lopez Gracia, Fernando"]
[WhiteFideId "13700278"]
[BlackFideId "2207184"]
[WhiteElo "2521"]
[BlackElo "2389"]
[Result "1-0"]
[Round "07"]
[TimeControl "180+1"]
[Date "2021.07.06"]
[WhiteClock "0:00:06"]
[BlackClock "0:00:12"]

1. e4 {[%clk 0:03:00]}  e5 {[%clk 0:02:59]} 2. Nf3 {[%clk 0:03:00]}  Nc6 {[%clk 0:02:58]} 3. d4 {[%clk 0:02:59]}  exd4 {[%clk 0:02:57]} 4. Nxd4 {[%clk 0:02:59]}  Nf6 {[%clk 0:02:56]} 5. Nxc6 {[%clk 0:02:59]}  bxc6 {[%clk 0:02:56]} 6. e5 {[%clk 0:02:58]}  Qe7 {[%clk 0:02:55]} 7. Qe2 {[%clk 0:02:59]}  Nd5 {[%clk 0:02:54]} 8. c4 {[%clk 0:02:59]}  Ba6 {[%clk 0:02:53]} 9. h4 {[%clk 0:02:53]}  f6 {[%clk 0:02:20]} 10. exf6 {[%clk 0:02:51]}  Nxf6 {[%clk 0:02:18]} 11. Nc3 {[%clk 0:02:46]}  Qxe2+ {[%clk 0:02:14]} 12. Bxe2 {[%clk 0:02:46]}  Bb4 {[%clk 0:02:15]} 13. Bd2 {[%clk 0:02:45]}  O-O {[%clk 0:02:15]} 14. a3 {[%clk 0:02:28]}  Bxc3 {[%clk 0:02:11]} 15. Bxc3 {[%clk 0:02:28]}  Rae8 {[%clk 0:02:10]} 16. b3 {[%clk 0:02:19]}  d5 {[%clk 0:02:00]} 17. Bb4 {[%clk 0:01:22]}  dxc4 {[%clk 0:01:56]} 18. Kf1 {[%clk 0:01:08]}  Rf7 {[%clk 0:01:37]} 19. Rh3 {[%clk 0:00:59]}  Ne4 {[%clk 0:01:36]} 20. Rf3 {[%clk 0:00:57]}  Rxf3 {[%clk 0:01:20]} 21. gxf3 {[%clk 0:00:56]}  Nd6 {[%clk 0:00:49]} 22. Rc1 {[%clk 0:00:48]}  Kf7 {[%clk 0:00:40]} 23. bxc4 {[%clk 0:00:46]}  g6 {[%clk 0:00:34]} 24. Bd3 {[%clk 0:00:40]}  Re5 {[%clk 0:00:30]} 25. Kg2 {[%clk 0:00:37]}  c5 {[%clk 0:00:30]} 26. Ba5 {[%clk 0:00:36]}  Re7 {[%clk 0:00:28]} 27. Bd2 {[%clk 0:00:33]}  Bb7 {[%clk 0:00:25]} 28. Be3 {[%clk 0:00:32]}  Nf5 {[%clk 0:00:24]} 29. Bxc5 {[%clk 0:00:32]}  Re5 {[%clk 0:00:23]} 30. Bxf5 {[%clk 0:00:28]}  Rxf5 {[%clk 0:00:23]} 31. Bxa7 {[%clk 0:00:27]}  Rxf3 {[%clk 0:00:22]} 32. Kg1 {[%clk 0:00:25]}  Rxa3 {[%clk 0:00:22]} 33. Be3 {[%clk 0:00:26]}  Ke6 {[%clk 0:00:21]} 34. Kh2 {[%clk 0:00:21]}  Kf5 {[%clk 0:00:20]} 35. Kg3 {[%clk 0:00:22]}  Be4 {[%clk 0:00:19]} 36. Rd1 {[%clk 0:00:16]}  Rd3 {[%clk 0:00:18]} 37. Ra1 {[%clk 0:00:16]}  c6 {[%clk 0:00:17]} 38. Ra5+ {[%clk 0:00:15]}  Ke6 {[%clk 0:00:16]} 39. Kf4 {[%clk 0:00:16]}  Bf5 {[%clk 0:00:16]} 40. h5 {[%clk 0:00:15]}  Kd7 {[%clk 0:00:16]} 41. h6 {[%clk 0:00:16]}  Rd1 {[%clk 0:00:16]} 42. Ra7+ {[%clk 0:00:15]}  Ke6 {[%clk 0:00:16]} 43. Rxh7 {[%clk 0:00:16]}  g5+ {[%clk 0:00:16]} 44. Kxg5 {[%clk 0:00:12]}  Bxh7 {[%clk 0:00:17]} 45. c5 {[%clk 0:00:11]}  Rd5+ {[%clk 0:00:15]} 46. Kf4 {[%clk 0:00:09]}  Rf5+ {[%clk 0:00:15]} 47. Kg4 {[%clk 0:00:09]}  Ke5 {[%clk 0:00:15]} 48. f4+ {[%clk 0:00:05]}  Ke4 {[%clk 0:00:12]} 49. Bd2 {[%clk 0:00:06]} 1-0


[Site "https://www.chess.com"]

[Event "Titled Tuesday Blitz July 6 2021"]
[White "Le, Tuan Minh"]
[Black "Bartel, Michal"]
[WhiteFideId "12401153"]
[BlackFideId "1119257"]
[WhiteElo "2882"]
[BlackElo "2568"]
[Result "1-0"]
[Round "07"]
[TimeControl "180+1"]
[Date "2021.07.06"]
[WhiteClock "0:00:25"]
[BlackClock "0:00:29"]

1. d4 {[%clk 0:03:00]}  Nf6 {[%clk 0:02:58]} 2. Nf3 {[%clk 0:02:57]}  c5 {[%clk 0:02:58]} 3. c3 {[%clk 0:02:57]}  Qb6 {[%clk 0:02:55]} 4. dxc5 {[%clk 0:02:35]}  Qxc5 {[%clk 0:02:54]} 5. Bf4 {[%clk 0:02:36]}  d5 {[%clk 0:02:51]} 6. Nbd2 {[%clk 0:02:35]}  Nc6 {[%clk 0:02:48]} 7. e3 {[%clk 0:02:34]}  Bg4 {[%clk 0:02:43]} 8. Qa4 {[%clk 0:02:28]}  e6 {[%clk 0:02:36]} 9. Ne5 {[%clk 0:02:25]}  Be7 {[%clk 0:02:28]} 10. Bb5 {[%clk 0:02:14]}  Rc8 {[%clk 0:02:22]} 11. Nb3 {[%clk 0:02:08]}  Qb6 {[%clk 0:02:20]} 12. Nd4 {[%clk 0:01:56]}  O-O {[%clk 0:02:17]} 13. Ndxc6 {[%clk 0:01:51]}  bxc6 {[%clk 0:02:17]} 14. Nxc6 {[%clk 0:01:52]}  Rxc6 {[%clk 0:01:47]} 15. Bxc6 {[%clk 0:01:50]}  Qxb2 {[%clk 0:01:46]} 16. O-O {[%clk 0:01:51]}  Ne4 {[%clk 0:01:35]} 17. Rab1 {[%clk 0:01:30]}  Qxc3 {[%clk 0:01:30]} 18. Rfc1 {[%clk 0:01:29]}  Qf6 {[%clk 0:01:27]} 19. Qd4 {[%clk 0:01:15]}  Qg6 {[%clk 0:01:10]} 20. Qxa7 {[%clk 0:01:11]}  Bf3 {[%clk 0:01:02]} 21. Bg3 {[%clk 0:01:11]}  Nxg3 {[%clk 0:00:56]} 22. hxg3 {[%clk 0:01:11]}  Be4 {[%clk 0:00:57]} 23. Rb8 {[%clk 0:01:03]}  Bd6 {[%clk 0:00:51]} 24. Rxf8+ {[%clk 0:01:03]}  Bxf8 {[%clk 0:00:52]} 25. Bb5 {[%clk 0:00:37]}  h5 {[%clk 0:00:50]} 26. Qb8 {[%clk 0:00:36]}  Qf6 {[%clk 0:00:42]} 27. a4 {[%clk 0:00:36]}  h4 {[%clk 0:00:41]} 28. gxh4 {[%clk 0:00:29]}  Qxh4 {[%clk 0:00:38]} 29. Rc8 {[%clk 0:00:24]}  Qe7 {[%clk 0:00:38]} 30. a5 {[%clk 0:00:24]}  g5 {[%clk 0:00:30]} 31. a6 {[%clk 0:00:24]}  Qb4 {[%clk 0:00:31]} 32. Rxf8+ {[%clk 0:00:24]}  Qxf8 {[%clk 0:00:30]} 33. Qxf8+ {[%clk 0:00:25]}  Kxf8 {[%clk 0:00:31]} 34. Bc6 {[%clk 0:00:25]}  d4 {[%clk 0:00:29]} 35. Bxe4 {[%clk 0:00:25]} 1-0


[Site "https://www.chess.com"]

[Event "Titled Tuesday Blitz July 6 2021"]
[White "Leenhouts, Koen"]
[Black "Korchmar, Vasiliy"]
[WhiteFideId "1008439"]
[BlackFideId "24131750"]
[WhiteElo "2409"]
[BlackElo "2370"]
[Result "1/2-1/2"]
[Round "07"]
[TimeControl "180+1"]
[Date "2021.07.06"]
[WhiteClock "0:00:05"]
[BlackClock "0:00:09"]

1. d4 {[%clk 0:02:28]}  Nf6 {[%clk 0:02:58]} 2. c4 {[%clk 0:02:28]}  g6 {[%clk 0:02:58]} 3. Nc3 {[%clk 0:02:28]}  d5 {[%clk 0:02:58]} 4. Bg5 {[%clk 0:02:27]}  Ne4 {[%clk 0:02:43]} 5. Bh4 {[%clk 0:02:26]}  c5 {[%clk 0:02:37]} 6. cxd5 {[%clk 0:02:23]}  Nxc3 {[%clk 0:02:35]} 7. bxc3 {[%clk 0:02:24]}  Qxd5 {[%clk 0:02:31]} 8. Nf3 {[%clk 0:02:24]}  Nc6 {[%clk 0:02:28]} 9. e3 {[%clk 0:02:24]}  cxd4 {[%clk 0:02:27]} 10. cxd4 {[%clk 0:02:23]}  e5 {[%clk 0:02:27]} 11. a3 {[%clk 0:02:14]}  exd4 {[%clk 0:02:10]} 12. Nxd4 {[%clk 0:01:55]}  Nxd4 {[%clk 0:02:01]} 13. Qxd4 {[%clk 0:01:54]}  Qxd4 {[%clk 0:01:59]} 14. exd4 {[%clk 0:01:54]}  Bg7 {[%clk 0:01:59]} 15. Bb5+ {[%clk 0:01:54]}  Bd7 {[%clk 0:01:59]} 16. Bxd7+ {[%clk 0:01:54]}  Kxd7 {[%clk 0:02:00]} 17. O-O {[%clk 0:01:51]}  Rhe8 {[%clk 0:01:55]} 18. Rab1 {[%clk 0:01:51]}  b6 {[%clk 0:01:54]} 19. a4 {[%clk 0:01:50]}  Re4 {[%clk 0:01:53]} 20. Bg3 {[%clk 0:01:45]}  Bxd4 {[%clk 0:01:47]} 21. a5 {[%clk 0:01:28]}  Bc5 {[%clk 0:01:46]} 22. Rfd1+ {[%clk 0:01:23]}  Kc6 {[%clk 0:01:46]} 23. Rbc1 {[%clk 0:01:10]}  Kb5 {[%clk 0:01:26]} 24. axb6 {[%clk 0:01:08]}  axb6 {[%clk 0:01:27]} 25. Rd7 {[%clk 0:01:04]}  Rae8 {[%clk 0:01:21]} 26. Kf1 {[%clk 0:00:59]}  R8e7 {[%clk 0:01:20]} 27. Rd2 {[%clk 0:00:50]}  Bb4 {[%clk 0:01:14]} 28. Rd5+ {[%clk 0:00:47]}  Ka6 {[%clk 0:01:11]} 29. f3 {[%clk 0:00:43]}  Re2 {[%clk 0:01:08]} 30. Bf2 {[%clk 0:00:39]}  Ra2 {[%clk 0:00:58]} 31. Rb1 {[%clk 0:00:34]}  Ba5 {[%clk 0:00:52]} 32. Rd6 {[%clk 0:00:22]}  Rb7 {[%clk 0:00:43]} 33. h4 {[%clk 0:00:22]}  h5 {[%clk 0:00:40]} 34. g4 {[%clk 0:00:22]}  hxg4 {[%clk 0:00:39]} 35. fxg4 {[%clk 0:00:23]}  Ra4 {[%clk 0:00:39]} 36. h5 {[%clk 0:00:14]}  Rxg4 {[%clk 0:00:39]} 37. h6 {[%clk 0:00:14]}  Rg5 {[%clk 0:00:40]} 38. Be3 {[%clk 0:00:09]}  Rh5 {[%clk 0:00:40]} 39. Ke2 {[%clk 0:00:10]}  Re7 {[%clk 0:00:32]} 40. Rb3 {[%clk 0:00:08]}  Rh2+ {[%clk 0:00:30]} 41. Kf3 {[%clk 0:00:07]}  Rh3+ {[%clk 0:00:27]} 42. Kf2 {[%clk 0:00:07]}  Rexe3 {[%clk 0:00:07]} 43. Rxe3 {[%clk 0:00:08]}  Rxh6 {[%clk 0:00:07]} 44. Rd7 {[%clk 0:00:06]}  Bb4 {[%clk 0:00:05]} 45. Re4 {[%clk 0:00:04]}  Bc5+ {[%clk 0:00:06]} 46. Kf3 {[%clk 0:00:05]}  Rh3+ {[%clk 0:00:06]} 47. Kg2 {[%clk 0:00:04]}  Rh5 {[%clk 0:00:04]} 48. Rxf7 {[%clk 0:00:03]}  Rg5+ {[%clk 0:00:05]} 49. Kf3 {[%clk 0:00:03]}  Kb5 {[%clk 0:00:06]} 50. Rg4 {[%clk 0:00:03]}  Rd5 {[%clk 0:00:03]} 51. Rxg6 {[%clk 0:00:03]}  Rd3+ {[%clk 0:00:04]} 52. Ke4 {[%clk 0:00:02]}  Re3+ {[%clk 0:00:04]} 53. Kf4 {[%clk 0:00:03]}  Re1 {[%clk 0:00:05]} 54. Rf5 {[%clk 0:00:03]}  Rf1+ {[%clk 0:00:05]} 55. Ke5 {[%clk 0:00:03]}  Re1+ {[%clk 0:00:06]} 56. Kf6 {[%clk 0:00:03]}  Rd1 {[%clk 0:00:07]} 57. Rg4 {[%clk 0:00:02]}  Rd6+ {[%clk 0:00:08]} 58. Ke5 {[%clk 0:00:02]}  Rd1 {[%clk 0:00:07]} 59. Ke4 {[%clk 0:00:02]}  Re1+ {[%clk 0:00:08]} 60. Kf3 {[%clk 0:00:03]}  Re8 {[%clk 0:00:09]} 61. Rf7 {[%clk 0:00:02]}  Re3+ {[%clk 0:00:09]} 62. Kf4 {[%clk 0:00:01]}  Re1 {[%clk 0:00:09]} 63. Kf5 {[%clk 0:00:02]}  Rf1+ {[%clk 0:00:09]} 64. Kg6 {[%clk 0:00:03]}  Re1 {[%clk 0:00:10]} 65. Rf5 {[%clk 0:00:03]}  Re6+ {[%clk 0:00:10]} 66. Rf6 {[%clk 0:00:03]}  Re8 {[%clk 0:00:11]} 67. Kf5 {[%clk 0:00:04]}  Rd8 {[%clk 0:00:11]} 68. Rf7 {[%clk 0:00:04]}  Rd5+ {[%clk 0:00:11]} 69. Ke6 {[%clk 0:00:05]}  Rd1 {[%clk 0:00:12]} 70. Ke5 {[%clk 0:00:05]}  Kc6 {[%clk 0:00:12]} 71. Ke6 {[%clk 0:00:05]}  Re1+ {[%clk 0:00:12]} 72. Kf6 {[%clk 0:00:06]}  Rf1+ {[%clk 0:00:12]} 73. Kg6 {[%clk 0:00:06]}  Re1 {[%clk 0:00:13]} 74. Rf6+ {[%clk 0:00:05]}  Kd5 {[%clk 0:00:12]} 75. Rf5+ {[%clk 0:00:06]}  Kc6 {[%clk 0:00:13]} 76. Rf6+ {[%clk 0:00:07]}  Kb5 {[%clk 0:00:13]} 77. Rf5 {[%clk 0:00:08]}  Re8 {[%clk 0:00:12]} 78. Rf6 {[%clk 0:00:08]}  Rg8+ {[%clk 0:00:12]} 79. Kf5 {[%clk 0:00:08]}  Rb8 {[%clk 0:00:13]} 80. Re6 {[%clk 0:00:08]}  Rf8+ {[%clk 0:00:12]} 81. Rf6 {[%clk 0:00:07]}  Re8 {[%clk 0:00:12]} 82. Re6 {[%clk 0:00:07]}  Ra8 {[%clk 0:00:13]} 83. Re2 {[%clk 0:00:07]}  Ra3 {[%clk 0:00:12]} 84. Rb2+ {[%clk 0:00:07]}  Kc6 {[%clk 0:00:13]} 85. Rg6+ {[%clk 0:00:06]}  Kb7 {[%clk 0:00:11]} 86. Rg7+ {[%clk 0:00:05]}  Ka6 {[%clk 0:00:11]} 87. Rg6 {[%clk 0:00:05]}  Rf3+ {[%clk 0:00:11]} 88. Ke4 {[%clk 0:00:05]}  Rf8 {[%clk 0:00:12]} 89. Kd5 {[%clk 0:00:05]}  Rd8+ {[%clk 0:00:12]} 90. Kc4 {[%clk 0:00:04]}  Rd4+ {[%clk 0:00:13]} 91. Kc3 {[%clk 0:00:04]}  Rd7 {[%clk 0:00:13]} 92. Ra2+ {[%clk 0:00:04]}  Kb5 {[%clk 0:00:12]} 93. Rb2+ {[%clk 0:00:04]}  Ka6 {[%clk 0:00:13]} 94. Ra2+ {[%clk 0:00:05]}  Kb7 {[%clk 0:00:13]} 95. Kc4 {[%clk 0:00:05]}  Rd4+ {[%clk 0:00:13]} 96. Kc3 {[%clk 0:00:05]}  Rh4 {[%clk 0:00:13]} 97. Rg7+ {[%clk 0:00:05]}  Kc6 {[%clk 0:00:14]} 98. Rg6+ {[%clk 0:00:06]}  Kb5 {[%clk 0:00:11]} 99. Rb2+ {[%clk 0:00:05]}  Bb4+ {[%clk 0:00:10]} 100. Kd3 {[%clk 0:00:05]}  Rh3+ {[%clk 0:00:09]} 101. Kd4 {[%clk 0:00:05]} 1/2-1/2


[Site "https://www.chess.com"]

[Event "Titled Tuesday Blitz July 6 2021"]
[White "Makhnev, Denis"]
[Black "Pereira, Juliano Resende M"]
[WhiteFideId "13707647"]
[BlackFideId "2109816"]
[WhiteElo "2537"]
[BlackElo "2449"]
[Result "1/2-1/2"]
[Round "07"]
[TimeControl "180+1"]
[Date "2021.07.06"]
[WhiteClock "0:00:24"]
[BlackClock "0:00:14"]

1. Nf3 {[%clk 0:03:00]}  Nf6 {[%clk 0:02:54]} 2. g3 {[%clk 0:03:00]}  e6 {[%clk 0:02:55]} 3. Bg2 {[%clk 0:03:00]}  d5 {[%clk 0:02:56]} 4. O-O {[%clk 0:02:59]}  Be7 {[%clk 0:02:57]} 5. c4 {[%clk 0:02:59]}  O-O {[%clk 0:02:58]} 6. d4 {[%clk 0:02:58]}  c6 {[%clk 0:02:56]} 7. Qc2 {[%clk 0:02:56]}  b6 {[%clk 0:02:56]} 8. Rd1 {[%clk 0:02:54]}  Bb7 {[%clk 0:02:56]} 9. b3 {[%clk 0:02:52]}  Na6 {[%clk 0:02:56]} 10. Bb2 {[%clk 0:02:51]}  Rc8 {[%clk 0:02:55]} 11. Nc3 {[%clk 0:02:50]}  Nb4 {[%clk 0:02:41]} 12. Qd2 {[%clk 0:02:47]}  a5 {[%clk 0:02:19]} 13. Ne5 {[%clk 0:02:44]}  Nd7 {[%clk 0:02:18]} 14. Nxd7 {[%clk 0:02:40]}  Qxd7 {[%clk 0:02:18]} 15. e4 {[%clk 0:02:39]}  Rfd8 {[%clk 0:02:04]} 16. a3 {[%clk 0:02:37]}  Na6 {[%clk 0:02:04]} 17. exd5 {[%clk 0:02:36]}  cxd5 {[%clk 0:02:03]} 18. cxd5 {[%clk 0:02:33]}  exd5 {[%clk 0:01:57]} 19. Rac1 {[%clk 0:02:31]}  Nc7 {[%clk 0:01:54]} 20. Na4 {[%clk 0:02:26]}  Qd6 {[%clk 0:01:42]} 21. Bh3 {[%clk 0:02:12]}  Ne6 {[%clk 0:01:39]} 22. Qe2 {[%clk 0:01:59]}  Rxc1 {[%clk 0:01:28]} 23. Rxc1 {[%clk 0:01:59]}  Ng5 {[%clk 0:01:26]} 24. Bg2 {[%clk 0:01:55]}  Ne4 {[%clk 0:01:26]} 25. Qb5 {[%clk 0:01:46]}  Qf6 {[%clk 0:01:13]} 26. f3 {[%clk 0:01:37]}  Ng5 {[%clk 0:01:12]} 27. f4 {[%clk 0:01:25]}  Ne4 {[%clk 0:00:59]} 28. Qxb6 {[%clk 0:01:24]}  Qxb6 {[%clk 0:00:54]} 29. Nxb6 {[%clk 0:01:24]}  Bd6 {[%clk 0:00:34]} 30. Na4 {[%clk 0:01:23]}  Rb8 {[%clk 0:00:31]} 31. Nc5 {[%clk 0:01:14]}  Ba8 {[%clk 0:00:22]} 32. Bxe4 {[%clk 0:00:52]}  dxe4 {[%clk 0:00:20]} 33. Bc3 {[%clk 0:00:51]}  h5 {[%clk 0:00:18]} 34. Bxa5 {[%clk 0:00:50]}  Bxc5 {[%clk 0:00:16]} 35. dxc5 {[%clk 0:00:50]}  Rxb3 {[%clk 0:00:15]} 36. c6 {[%clk 0:00:50]}  Rxa3 {[%clk 0:00:15]} 37. c7 {[%clk 0:00:49]}  Bb7 {[%clk 0:00:14]} 38. c8=Q+ {[%clk 0:00:47]}  Bxc8 {[%clk 0:00:14]} 39. Rxc8+ {[%clk 0:00:47]}  Kh7 {[%clk 0:00:15]} 40. Bb6 {[%clk 0:00:46]}  Ra1+ {[%clk 0:00:14]} 41. Kf2 {[%clk 0:00:46]}  Ra2+ {[%clk 0:00:15]} 42. Ke3 {[%clk 0:00:46]}  Rxh2 {[%clk 0:00:15]} 43. Kxe4 {[%clk 0:00:46]}  Rg2 {[%clk 0:00:16]} 44. Kf3 {[%clk 0:00:46]}  Rb2 {[%clk 0:00:15]} 45. Be3 {[%clk 0:00:45]}  Kg6 {[%clk 0:00:15]} 46. Rc5 {[%clk 0:00:43]}  f6 {[%clk 0:00:14]} 47. f5+ {[%clk 0:00:43]}  Kh7 {[%clk 0:00:15]} 48. Rc7 {[%clk 0:00:42]}  Rb5 {[%clk 0:00:13]} 49. Ke4 {[%clk 0:00:41]}  Rb4+ {[%clk 0:00:13]} 50. Bd4 {[%clk 0:00:41]}  Kh6 {[%clk 0:00:13]} 51. Kd5 {[%clk 0:00:40]}  Rb3 {[%clk 0:00:13]} 52. Rc3 {[%clk 0:00:38]}  Rxc3 {[%clk 0:00:12]} 53. Bxc3 {[%clk 0:00:37]}  Kg5 {[%clk 0:00:13]} 54. Ke6 {[%clk 0:00:29]}  Kg4 {[%clk 0:00:10]} 55. Bxf6 {[%clk 0:00:28]}  gxf6 {[%clk 0:00:09]} 56. Kxf6 {[%clk 0:00:29]}  Kxg3 {[%clk 0:00:09]} 57. Kg5 {[%clk 0:00:29]}  h4 {[%clk 0:00:10]} 58. f6 {[%clk 0:00:29]}  h3 {[%clk 0:00:11]} 59. f7 {[%clk 0:00:30]}  h2 {[%clk 0:00:12]} 60. f8=Q {[%clk 0:00:31]}  h1=Q {[%clk 0:00:12]} 61. Qf4+ {[%clk 0:00:30]}  Kh3 {[%clk 0:00:13]} 62. Qg4+ {[%clk 0:00:29]}  Kh2 {[%clk 0:00:13]} 63. Qh4+ {[%clk 0:00:26]}  Kg1 {[%clk 0:00:14]} 64. Qe1+ {[%clk 0:00:25]}  Kh2 {[%clk 0:00:14]} 65. Qh4+ {[%clk 0:00:24]}  Kg1 {[%clk 0:00:14]} 66. Qxh1+ {[%clk 0:00:24]}  Kxh1 {[%clk 0:00:14]} 1/2-1/2


[Site "https://www.chess.com"]

[Event "Titled Tuesday Blitz July 6 2021"]
[White "Matinian, Nikita"]
[Black "Kotepalli, Sai Nirupama"]
[WhiteFideId "24129100"]
[BlackFideId "5039444"]
[WhiteElo "2410"]
[BlackElo "2436"]
[Result "1-0"]
[Round "07"]
[TimeControl "180+1"]
[Date "2021.07.06"]
[WhiteClock "0:01:25"]
[BlackClock "0:00:18"]

1. e4 {[%clk 0:03:00]}  c5 {[%clk 0:02:59]} 2. Nc3 {[%clk 0:02:59]}  e6 {[%clk 0:02:58]} 3. f4 {[%clk 0:02:58]}  d5 {[%clk 0:02:57]} 4. Nf3 {[%clk 0:02:59]}  dxe4 {[%clk 0:02:55]} 5. Nxe4 {[%clk 0:02:59]}  Nf6 {[%clk 0:02:55]} 6. Bb5+ {[%clk 0:02:56]}  Bd7 {[%clk 0:02:53]} 7. Qe2 {[%clk 0:02:53]}  Nxe4 {[%clk 0:02:49]} 8. Bxd7+ {[%clk 0:02:53]}  Qxd7 {[%clk 0:02:49]} 9. Qxe4 {[%clk 0:02:54]}  Nc6 {[%clk 0:02:49]} 10. O-O {[%clk 0:02:50]}  Bd6 {[%clk 0:02:47]} 11. d3 {[%clk 0:02:46]}  O-O {[%clk 0:02:41]} 12. Ng5 {[%clk 0:02:44]}  g6 {[%clk 0:02:38]} 13. b3 {[%clk 0:02:35]}  Nd4 {[%clk 0:02:24]} 14. Bb2 {[%clk 0:02:35]}  f5 {[%clk 0:02:21]} 15. Qe1 {[%clk 0:02:21]}  Nxc2 {[%clk 0:02:03]} 16. Qc3 {[%clk 0:02:20]}  Nd4 {[%clk 0:01:57]} 17. Rae1 {[%clk 0:02:20]}  Rae8 {[%clk 0:01:54]} 18. a4 {[%clk 0:02:17]}  b6 {[%clk 0:01:48]} 19. Qc4 {[%clk 0:02:16]}  h6 {[%clk 0:01:35]} 20. Nf3 {[%clk 0:02:16]}  Nxf3+ {[%clk 0:01:30]} 21. Rxf3 {[%clk 0:02:17]}  g5 {[%clk 0:01:09]} 22. fxg5 {[%clk 0:02:12]}  hxg5 {[%clk 0:01:10]} 23. Rh3 {[%clk 0:02:12]}  Qc6 {[%clk 0:00:56]} 24. Rh8+ {[%clk 0:01:47]}  Kf7 {[%clk 0:00:55]} 25. Rh7+ {[%clk 0:01:47]}  Kg6 {[%clk 0:00:51]} 26. Rg7+ {[%clk 0:01:47]}  Kh5 {[%clk 0:00:48]} 27. Re3 {[%clk 0:01:46]}  g4 {[%clk 0:00:39]} 28. h3 {[%clk 0:01:29]}  g3 {[%clk 0:00:24]} 29. Rh7+ {[%clk 0:01:25]}  Kg6 {[%clk 0:00:23]} 30. Qh4 {[%clk 0:01:25]}  f4 {[%clk 0:00:18]} 31. Qh5# {[%clk 0:01:25]} 1-0


[Site "https://www.chess.com"]

[Event "Titled Tuesday Blitz July 6 2021"]
[White "Nabaty, Tamir"]
[Black "Tejedor Fuente, Enrique"]
[WhiteFideId "2809052"]
[BlackFideId "2299100"]
[WhiteElo "2826"]
[BlackElo "2566"]
[Result "1-0"]
[Round "07"]
[TimeControl "180+1"]
[Date "2021.07.06"]
[WhiteClock "0:00:06"]
[BlackClock "0:00:01"]

1. e4 {[%clk 0:03:00]}  c5 {[%clk 0:02:49]} 2. Nf3 {[%clk 0:02:59]}  Nc6 {[%clk 0:02:45]} 3. d4 {[%clk 0:02:57]}  cxd4 {[%clk 0:02:45]} 4. Nxd4 {[%clk 0:02:57]}  e6 {[%clk 0:02:42]} 5. Nc3 {[%clk 0:02:55]}  Qc7 {[%clk 0:02:39]} 6. Be3 {[%clk 0:02:55]}  a6 {[%clk 0:02:37]} 7. Qf3 {[%clk 0:02:53]}  Nge7 {[%clk 0:02:33]} 8. O-O-O {[%clk 0:02:53]}  Nxd4 {[%clk 0:02:31]} 9. Bxd4 {[%clk 0:02:53]}  Nc6 {[%clk 0:02:31]} 10. Be3 {[%clk 0:02:54]}  g6 {[%clk 0:02:30]} 11. Qg3 {[%clk 0:02:53]}  Qxg3 {[%clk 0:02:28]} 12. hxg3 {[%clk 0:02:54]}  Bg7 {[%clk 0:02:25]} 13. Bc5 {[%clk 0:02:54]}  b5 {[%clk 0:02:18]} 14. f4 {[%clk 0:02:48]}  Bb7 {[%clk 0:02:17]} 15. e5 {[%clk 0:02:49]}  O-O-O {[%clk 0:02:17]} 16. Ne4 {[%clk 0:02:48]}  Kc7 {[%clk 0:02:16]} 17. Ng5 {[%clk 0:02:45]}  f6 {[%clk 0:02:13]} 18. exf6 {[%clk 0:02:43]}  Bxf6 {[%clk 0:02:14]} 19. Nf7 {[%clk 0:02:43]}  h5 {[%clk 0:02:14]} 20. Bd6+ {[%clk 0:02:32]}  Kb6 {[%clk 0:02:14]} 21. Bd3 {[%clk 0:02:33]}  Rhg8 {[%clk 0:02:11]} 22. Nxd8 {[%clk 0:02:31]}  Nxd8 {[%clk 0:02:12]} 23. Rd2 {[%clk 0:02:21]}  Nf7 {[%clk 0:02:11]} 24. Bb4 {[%clk 0:02:17]}  Nh6 {[%clk 0:01:41]} 25. Re1 {[%clk 0:02:10]}  Bc6 {[%clk 0:01:40]} 26. Be4 {[%clk 0:02:08]}  Nf5 {[%clk 0:01:39]} 27. Bxc6 {[%clk 0:02:06]}  Kxc6 {[%clk 0:01:40]} 28. Rd3 {[%clk 0:02:05]}  Re8 {[%clk 0:01:38]} 29. Bc3 {[%clk 0:02:04]}  Bd8 {[%clk 0:01:38]} 30. b3 {[%clk 0:01:59]}  Bb6 {[%clk 0:01:35]} 31. Re2 {[%clk 0:01:59]}  Rg8 {[%clk 0:01:27]} 32. Bf6 {[%clk 0:01:58]}  Rf8 {[%clk 0:01:26]} 33. Be5 {[%clk 0:01:54]}  Rg8 {[%clk 0:01:25]} 34. Kb2 {[%clk 0:01:50]}  Bc5 {[%clk 0:01:23]} 35. a3 {[%clk 0:01:39]}  a5 {[%clk 0:01:23]} 36. c3 {[%clk 0:01:39]}  d6 {[%clk 0:01:22]} 37. Bf6 {[%clk 0:01:37]}  Kd7 {[%clk 0:01:22]} 38. b4 {[%clk 0:01:36]}  Bb6 {[%clk 0:01:22]} 39. Bd4 {[%clk 0:01:16]}  Bc7 {[%clk 0:01:07]} 40. Bf2 {[%clk 0:01:08]}  a4 {[%clk 0:01:06]} 41. Re4 {[%clk 0:01:04]}  d5 {[%clk 0:01:04]} 42. c4 {[%clk 0:01:04]}  Nd6 {[%clk 0:00:56]} 43. Re2 {[%clk 0:00:48]}  bxc4 {[%clk 0:00:48]} 44. Rd1 {[%clk 0:00:43]}  Bd8 {[%clk 0:00:42]} 45. Bd4 {[%clk 0:00:42]}  Nf5 {[%clk 0:00:34]} 46. Bf2 {[%clk 0:00:30]}  Bf6+ {[%clk 0:00:34]} 47. Kc2 {[%clk 0:00:30]}  Rc8 {[%clk 0:00:21]} 48. g4 {[%clk 0:00:23]}  hxg4 {[%clk 0:00:21]} 49. Rh1 {[%clk 0:00:24]}  g3 {[%clk 0:00:20]} 50. Rh7+ {[%clk 0:00:24]}  Kd6 {[%clk 0:00:14]} 51. Bc5+ {[%clk 0:00:24]}  Rxc5 {[%clk 0:00:15]} 52. bxc5+ {[%clk 0:00:25]}  Kxc5 {[%clk 0:00:16]} 53. Kd1 {[%clk 0:00:18]}  Nd4 {[%clk 0:00:11]} 54. Rb2 {[%clk 0:00:18]}  Nb3 {[%clk 0:00:10]} 55. Re2 {[%clk 0:00:18]}  Nd4 {[%clk 0:00:10]} 56. Re3 {[%clk 0:00:18]}  Kd6 {[%clk 0:00:02]} 57. Rxg3 {[%clk 0:00:15]}  Nb5 {[%clk 0:00:02]} 58. Rb7 {[%clk 0:00:11]}  Nc3+ {[%clk 0:00:02]} 59. Kc2 {[%clk 0:00:11]}  Ne4 {[%clk 0:00:02]} 60. Rxg6 {[%clk 0:00:11]}  d4 {[%clk 0:00:02]} 61. Rxf6 {[%clk 0:00:06]}  d3+ {[%clk 0:00:03]} 62. Kd1 {[%clk 0:00:05]}  Nxf6 {[%clk 0:00:03]} 63. Kd2 {[%clk 0:00:05]}  Ne4+ {[%clk 0:00:02]} 64. Ke3 {[%clk 0:00:05]}  Nc5 {[%clk 0:00:01]} 65. Rb4 {[%clk 0:00:04]}  Kd5 {[%clk 0:00:01]} 66. Rb5 {[%clk 0:00:04]}  Kc6 {[%clk 0:00:01]} 67. Rb4 {[%clk 0:00:04]}  c3 {[%clk 0:00:01]} 68. Rc4 {[%clk 0:00:04]}  d2 {[%clk 0:00:01]} 69. Ke2 {[%clk 0:00:03]}  Kd5 {[%clk 0:00:01]} 70. Rxc3 {[%clk 0:00:03]}  Ne4 {[%clk 0:00:02]} 71. Rd3+ {[%clk 0:00:04]}  Kc4 {[%clk 0:00:02]} 72. Re3 {[%clk 0:00:03]}  Nc5 {[%clk 0:00:02]} 73. Kxd2 {[%clk 0:00:03]}  Kd4 {[%clk 0:00:02]} 74. Re2 {[%clk 0:00:03]}  Nb3+ {[%clk 0:00:01]} 75. Kc2 {[%clk 0:00:04]}  Kd5 {[%clk 0:00:01]} 76. Re5+ {[%clk 0:00:04]}  Kd6 {[%clk 0:00:02]} 77. Re4 {[%clk 0:00:04]}  Nc5 {[%clk 0:00:01]} 78. Rd4+ {[%clk 0:00:05]}  Ke7 {[%clk 0:00:01]} 79. Rc4 {[%clk 0:00:05]}  Nb7 {[%clk 0:00:01]} 80. Rxa4 {[%clk 0:00:05]}  Nc5 {[%clk 0:00:01]} 81. Rc4 {[%clk 0:00:06]} 1-0


[Site "https://www.chess.com"]